fUST/lending_fUST_20260112
["ID","MTS","AMOUNT","RATE_DAILY","PERIOD"]
[401342641,1768147853073,-2536.91,0.00029041,8]
[401342642,1768147853083,-500.0,0.00029041,8]
[401342643,1768147853093,-1450.0,0.00029041,5]
[401342644,1768147853102,-259.34,0.000291,2]
[401342645,1768147853111,-500.0,0.00029315,8]
[401342646,1768147853121,-311.25399765,0.00029315,2]
[401342647,1768147853131,-500.0,0.00029315,8]
[401342648,1768147853141,-500.0,0.00029315,8]
[401342649,1768147853150,-755.83,0.00029315,8]
[401342650,1768147853159,-511.42,0.00029315,8]
[401342651,1768147853169,-500.0,0.00029315,2]
[401342652,1768147853179,-2769.41,0.00029315,3]
[401342653,1768147853188,-2486.72,0.00029315,8]
[401342654,1768147853198,-4899.58,0.00029315,8]
[401342655,1768147853207,-16913.26,0.00029315,8]
[401342656,1768147853217,-3222.62,0.00029315,8]
[401342657,1768147853226,-2226.28,0.00029315,8]
[401342658,1768147853235,-6797.13,0.00029315,8]
[401342659,1768147853245,-4204.37,0.00029315,8]
[401342660,1768147853255,-500.0,0.00029315,8]
[401342661,1768147853264,-2536.91,0.00029315,8]
[401342662,1768147853274,-500.0,0.00029315,8]
[401342663,1768147853284,-556.3,0.00029486,3]
[401342664,1768147853294,-591.0,0.00029553,2]
[401342665,1768147853303,-500.0,0.00029589,8]
[401342666,1768147853314,-500.0,0.00029589,8]
[401342667,1768147853324,-298.53130147,0.00029589,8]
[401342668,1768147853334,-755.83,0.00029589,8]
[401342669,1768147853344,-511.42,0.00029589,8]
[401342670,1768147853354,-500.0,0.00029589,2]
[401342671,1768147853364,-151.0,0.00029589,7]
[401342672,1768147853374,-2769.41,0.00029589,3]
[401342673,1768147853383,-2486.72,0.00029589,8]
[401342674,1768147853394,-4899.58,0.00029589,8]
[401342675,1768147853404,-16913.26,0.00029589,8]
[401342676,1768147853414,-3222.62,0.00029589,8]
[401342677,1768147853424,-2226.28,0.00029589,8]
[401342678,1768147853434,-6797.13,0.00029589,8]
[401342679,1768147853444,-4204.37,0.00029589,8]
[401342680,1768147853456,-500.0,0.00029589,8]
[401342681,1768147853465,-2536.91,0.00029589,8]
[401342682,1768147853474,-500.0,0.00029589,8]
[401342683,1768147853484,-151.0,0.00029589,7]
[401342684,1768147853494,-151.0,0.00029589,7]
[401342685,1768147853503,-151.0,0.00029589,7]
[401342686,1768147853513,-151.0,0.00029589,2]
[401342687,1768147853523,-1550.0,0.00029589,5]
[401342688,1768147853533,-259.34,0.000296,2]
[401342689,1768147853542,-591.0,0.00029618,7]
[401342690,1768147853552,-155.57399191,0.00029662,5]
[401342691,1768147853562,-591.0,0.00029739,7]
[401342692,1768147853572,-173.58038977,0.00029827,30]
[401342693,1768147853582,-500.0,0.00029863,8]
[401342694,1768147853592,-500.0,0.00029863,8]
[401342695,1768147853601,-151.0,0.00029863,7]
[401342696,1768147853612,-151.0,0.00029863,7]
[401342697,1768147853622,-151.0,0.00029863,7]
[401342698,1768147853631,-151.0,0.00029863,7]
[401342699,1768147853641,-151.0,0.00029863,7]
[401342700,1768147853651,-151.0,0.00029863,7]
[401342701,1768147853660,-163.811911,0.00029863,7]
[401342702,1768147853670,-157.400999,0.00029863,7]
[401342703,1768147853680,-700.258706,0.00029863,7]
[401342704,1768147853690,-700.258706,0.00029863,7]
[401342705,1768147853699,-700.258706,0.00029863,7]
[401342706,1768147853709,-700.258706,0.00029863,7]
[401342707,1768147853719,-177.831998,0.00029863,7]
[401342708,1768147853728,-151.0,0.00029863,7]
[401342709,1768147853738,-151.0,0.00029863,7]
[401342710,1768147853748,-264.224,0.00029863,7]
[401342711,1768147853757,-264.224,0.00029863,7]
[401342712,1768147853767,-264.224,0.00029863,7]
[401342713,1768147853777,-264.224,0.00029863,7]
[401342714,1768147853786,-755.83,0.00029863,8]
[401342715,1768147853796,-511.42,0.00029863,8]
[401342716,1768147853805,-500.0,0.00029863,2]
[401342717,1768147853815,-349.055387,0.00029863,7]
[401342718,1768147853824,-349.055387,0.00029863,7]
[401342719,1768147853835,-349.055387,0.00029863,7]
[401342720,1768147853844,-349.055387,0.00029863,7]
[401342721,1768147853854,-2769.41,0.00029863,3]
[401342722,1768147853863,-2486.72,0.00029863,8]
[401342723,1768147853873,-4899.58,0.00029863,8]
[401342724,1768147853882,-16913.26,0.00029863,8]
[401342725,1768147853892,-3222.62,0.00029863,8]
[401342726,1768147853901,-2226.28,0.00029863,8]
[401342727,1768147853911,-6797.13,0.00029863,8]
[401342728,1768147853921,-4204.37,0.00029863,8]
[401342729,1768147853931,-313.65745506,0.00029863,8]
[401342730,1768147853940,-2536.91,0.00029863,8]
[401342731,1768147853950,-500.0,0.00029863,8]
[401342732,1768147853960,-591.0,0.00030027,2]
[401342733,1768147853970,-219.292,0.00030103,25]
[401342734,1768147853979,-500.0,0.00030136,8]
[401342735,1768147853989,-435.79809887,0.00030136,8]
[401342736,1768147853999,-755.83,0.00030136,8]
[401342737,1768147854008,-151.0,0.00030136,15]
[401342738,1768147854025,-151.0,0.00030136,7]
[401342739,1768147854034,-511.42,0.00030136,8]
[401342740,1768147854044,-151.0,0.00030136,20]
[401342741,1768147854054,-500.0,0.00030136,2]
[401342742,1768147854065,-500.0,0.00030136,7]
[401342743,1768147854074,-2769.41,0.00030136,3]
[401342744,1768147854083,-2486.72,0.00030136,8]
[401342745,1768147854094,-4899.58,0.00030136,8]
[401342746,1768147854103,-16913.26,0.00030136,8]
[401342747,1768147854113,-3222.62,0.00030136,8]
[401342748,1768147854123,-2226.28,0.00030136,8]
[401342749,1768147854132,-6797.13,0.00030136,8]
[401342750,1768147854142,-4204.37,0.00030136,8]
[401342751,1768147854152,-2536.91,0.00030136,8]
[401342752,1768147854161,-500.0,0.00030136,8]
[401342753,1768147854171,-151.0,0.00030136,14]
[401342754,1768147854181,-300.0,0.00030137,5]
[401342755,1768147854190,-1192.53787952,0.00030137,5]
[401342756,1768147854199,-500.0,0.00030137,120]
[401342757,1768147854209,-5000.0,0.00030203,2]
[401342758,1768147854219,-1914.0,0.00030295,7]
[401342759,1768147854228,-591.0,0.0003039,2]
[401342760,1768147854238,-151.0,0.000304,17]
[401342761,1768147854247,-500.0,0.0003041,8]
[401342762,1768147854257,-755.83,0.0003041,8]
[401342763,1768147854266,-511.42,0.0003041,8]
[401342764,1768147854275,-500.0,0.0003041,2]
[401342765,1768147854285,-2769.41,0.0003041,3]
[401342766,1768147854294,-2486.72,0.0003041,8]
[401342767,1768147854304,-4899.58,0.0003041,8]
[401342768,1768147854314,-16913.26,0.0003041,8]
[401342769,1768147854324,-3222.62,0.0003041,8]
[401342770,1768147854335,-2226.28,0.0003041,8]
[401342771,1768147854351,-6797.13,0.0003041,8]
[401342772,1768147854371,-4204.37,0.0003041,8]
[401342773,1768147854381,-2536.91,0.0003041,8]
[401342774,1768147854392,-500.0,0.0003041,8]
[401342775,1768147854402,-161.17,0.00030412,30]
[401342776,1768147854411,-591.0,0.00030418,2]
[401342777,1768147854422,-1002.20117456,0.00030423,15]
[401342778,1768147854432,-166.0,0.00030493,40]
[401342779,1768147854442,-910.57068098,0.00030574,2]
[401342780,1768147854451,-1916.0,0.00030577,2]
[401342781,1768147854462,-155.5739919,0.0003058,10]
[401342782,1768147854473,-151.0,0.000306,13]
[401342783,1768147854483,-2156.89,0.00030609,2]
[401342784,1768147854492,-1366.0,0.00030609,2]
[401342785,1768147854502,-628.0,0.00030609,2]
[401342786,1768147854512,-218.7,0.00030621,2]
[401342787,1768147854522,-417.0,0.00030621,2]
[401342788,1768147854532,-500.0,0.00030684,8]
[401342789,1768147854543,-755.83,0.00030684,8]
[401342790,1768147854553,-511.42,0.00030684,8]
[401342791,1768147854563,-500.0,0.00030684,2]
[401342792,1768147854573,-2769.41,0.00030684,3]
[401342793,1768147854583,-2486.72,0.00030684,8]
[401342794,1768147854593,-4899.58,0.00030684,8]
[401342795,1768147854603,-16913.26,0.00030684,8]
[401342796,1768147854612,-3222.62,0.00030684,8]
[401342797,1768147854623,-2226.28,0.00030684,8]
[401342798,1768147854634,-6797.13,0.00030684,8]
[401342799,1768147854646,-4204.37,0.00030684,8]
[401342800,1768147854656,-2536.91,0.00030684,8]
[401342801,1768147854667,-521.89810151,0.00030684,8]
[401342802,1768147854677,-500.0,0.00030685,120]
[401342803,1768147854688,-151.0,0.000308,13]
[401342804,1768147854698,-151.0,0.000308,20]
[401342805,1768147854707,-151.0,0.000308,14]
[401342806,1768147854717,-4003.76600937,0.00030898,2]
[401342807,1768147854805,-151.0,0.000309,17]
[401342808,1768147854815,-2000.0,0.00030916,7]
[401342809,1768147854826,-376.1363302,0.00030932,30]
[401342810,1768147854835,-500.0,0.00030958,8]
[401342811,1768147854845,-755.83,0.00030958,8]
[401342812,1768147854855,-511.42,0.00030958,8]
[401342813,1768147854864,-500.0,0.00030958,2]
[401342814,1768147854874,-2769.41,0.00030958,3]
[401342815,1768147854883,-2486.72,0.00030958,8]
[401342816,1768147854893,-4899.58,0.00030958,8]
[401342817,1768147854903,-16913.26,0.00030958,8]
[401342818,1768147854913,-3222.62,0.00030958,8]
[401342819,1768147854923,-2226.28,0.00030958,8]
[401342820,1768147854934,-6797.13,0.00030958,8]
[401342821,1768147854943,-4204.37,0.00030958,8]
[401342822,1768147854953,-2536.91,0.00030958,8]
[401342823,1768147854962,-151.0,0.00030981,14]
[401342824,1768147854972,-556.3,0.00030989,4]
[401342825,1768147854982,-588120.82157124,0.00030998,2]
[401342826,1768147854991,-153.659043,0.00030998,31]
[401342827,1768147855001,-189.468115,0.00030998,31]
[401342828,1768147855010,-243.363595,0.00030998,31]
[401342829,1768147855023,-151.0,0.00030998,31]
[401342830,1768147855033,-151.0,0.00030998,31]
[401342831,1768147855043,-255.738763,0.00030998,31]
[401342832,1768147855053,-700.258706,0.00030998,31]
[401342833,1768147855065,-700.258706,0.00030998,31]
[401342834,1768147855075,-700.258706,0.00030998,31]
[401342835,1768147855085,-700.258706,0.00030998,31]
[401342836,1768147855097,-151.0,0.00030998,31]
[401342837,1768147855107,-151.0,0.00030998,31]
[401342838,1768147855117,-264.224,0.00030998,31]
[401342839,1768147855127,-264.224,0.00030998,31]
[401342840,1768147855136,-264.224,0.00030998,31]
[401342841,1768147855145,-264.224,0.00030998,31]
[401342842,1768147855155,-204.270776,0.00030998,31]
[401342843,1768147855164,-466.694893,0.00030998,31]
[401342844,1768147855175,-466.694893,0.00030998,31]
[401342845,1768147855186,-466.694893,0.00030998,31]
[401342846,1768147855195,-466.694893,0.00030998,31]
[401342847,1768147855205,-151.0,0.00030998,31]
[401342848,1768147855215,-151.0,0.00030998,31]
[401342849,1768147855225,-349.055387,0.00030998,31]
[401342850,1768147855234,-349.055387,0.00030998,31]
[401342851,1768147855244,-349.055387,0.00030998,31]
[401342852,1768147855253,-349.055387,0.00030998,31]
[401342853,1768147855263,-151.0,0.00030998,31]
[401342854,1768147855273,-151.0,0.00030998,31]
[401342855,1768147855283,-151.0,0.00030998,31]
[401342856,1768147855292,-168.350881,0.00030998,31]
[401342857,1768147855301,-152.162088,0.00030998,2]
[401342858,1768147855311,-2140.41,0.00031,14]
[401342859,1768147855321,-151.0,0.00031025,3]
[401342860,1768147855330,-151.0,0.00031025,3]
[401342861,1768147855339,-151.0,0.00031025,3]
[401342862,1768147855350,-151.0,0.00031025,3]
[401342863,1768147855360,-151.0,0.00031025,3]
[401342864,1768147855370,-151.0,0.00031025,3]
[401342865,1768147855380,-151.0,0.00031025,3]
[401342866,1768147855393,-151.0,0.00031025,3]
[401342867,1768147855403,-151.0,0.00031025,3]
[401342868,1768147855413,-151.0,0.00031025,3]
[401342869,1768147855423,-151.0,0.00031025,3]
[401342870,1768147855435,-151.0,0.00031025,3]
[401342871,1768147855446,-151.0,0.00031025,3]
[401342872,1768147855457,-151.0,0.00031025,3]
[401342873,1768147855467,-151.0,0.00031025,3]
[401342874,1768147855476,-153.90472729,0.00031025,3]
[401342875,1768147855486,-151.0,0.00031036,2]
[401342876,1768147855496,-151.0,0.00031036,2]
[401342877,1768147855505,-242.10116632,0.00031036,2]
[401342878,1768147855515,-151.0,0.00031036,2]
[401342879,1768147855524,-156.587,0.00031036,2]
[401342880,1768147855534,-152.09143049,0.00031036,2]
[401342881,1768147855543,-311.85701,0.00031036,2]
[401342882,1768147855554,-250.0,0.00031036,2]
[401342883,1768147855564,-250.0,0.00031036,2]
[401342884,1768147855574,-2030.296672,0.00031036,2]
[401342885,1768147855584,-250.0,0.00031036,2]
[401342886,1768147855594,-250.0,0.00031036,2]
[401342887,1768147855604,-250.0,0.00031036,2]
[401342888,1768147855614,-250.0,0.00031036,2]
[401342889,1768147855624,-151.0,0.00031036,2]
[401342890,1768147855633,-250.0,0.00031036,2]
[401342891,1768147855643,-250.0,0.00031036,2]
[401342892,1768147855653,-151.0,0.00031036,2]
[401342893,1768147855662,-250.0,0.00031036,2]
[401342894,1768147855671,-250.0,0.00031036,2]
[401342895,1768147855681,-151.0,0.00031036,2]
[401342896,1768147855690,-250.0,0.00031036,2]
[401342897,1768147855700,-250.0,0.00031036,2]
[401342898,1768147855710,-151.0,0.00031036,2]
[401342899,1768147855720,-250.0,0.00031036,2]
[401342900,1768147855729,-151.0,0.00031036,2]
[401342901,1768147855739,-250.0,0.00031036,2]
[401342902,1768147855748,-151.0,0.00031036,2]
[401342903,1768147855758,-250.0,0.00031036,2]
[401342904,1768147855767,-151.0,0.00031036,2]
[401342905,1768147855777,-265.04542702,0.00031036,2]
[401342906,1768147855786,-151.0,0.00031036,2]
[401342907,1768147855795,-151.0,0.00031036,2]
[401342908,1768147855805,-255.89504653,0.00031036,2]
[401342909,1768147855815,-151.0,0.00031036,2]
[401342910,1768147855824,-151.0,0.00031036,2]
[401342911,1768147855834,-151.0,0.00031036,2]
[401342912,1768147855843,-151.0,0.00031036,2]
[401342913,1768147855853,-151.0,0.00031036,2]
[401342914,1768147855863,-151.0,0.00031036,2]
[401342915,1768147855872,-151.0,0.00031036,2]
[401342916,1768147855882,-151.0,0.00031036,2]
[401342917,1768147855892,-151.0,0.00031036,2]
[401342918,1768147855901,-151.0,0.00031036,2]
[401342919,1768147855911,-151.0,0.00031036,2]
[401342920,1768147855920,-151.0,0.00031036,2]
[401342921,1768147855930,-151.0,0.00031036,2]
[401342922,1768147855939,-151.0,0.00031036,2]
[401342923,1768147855949,-2150.738,0.00031036,2]
[401342924,1768147855959,-151.0,0.00031036,2]
[401342925,1768147855968,-151.0,0.00031036,2]
[401342926,1768147855977,-151.0,0.00031036,2]
[401342927,1768147855986,-152.53645226,0.00031036,2]
[401342928,1768147855995,-30000.0,0.00031036,2]
[401342929,1768147856004,-151.0,0.00031036,2]
[401342930,1768147856015,-151.0,0.00031036,2]
[401342931,1768147856028,-250.0,0.00031036,2]
[401342932,1768147856039,-151.0,0.00031036,2]
[401342933,1768147856051,-151.0,0.00031036,2]
[401342934,1768147856062,-250.0,0.00031036,2]
[401342935,1768147856071,-151.0,0.00031036,2]
[401342936,1768147856081,-250.0,0.00031036,2]
[401342937,1768147856092,-151.0,0.00031036,2]
[401342938,1768147856101,-250.0,0.00031036,2]
[401342939,1768147856111,-250.0,0.00031036,2]
[401342940,1768147856121,-250.0,0.00031036,2]
[401342941,1768147856131,-151.0,0.00031036,2]
[401342942,1768147856142,-291.2784889,0.00031036,2]
[401342943,1768147856152,-151.0,0.00031036,2]
[401342944,1768147856162,-151.0,0.00031036,2]
[401342945,1768147856172,-250.0,0.00031036,2]
[401342946,1768147856181,-250.0,0.00031036,2]
[401342947,1768147856191,-151.0,0.00031036,2]
[401342948,1768147856201,-250.0,0.00031036,2]
[401342949,1768147856210,-250.0,0.00031036,2]
[401342950,1768147856220,-151.0,0.00031036,2]
[401342951,1768147856229,-250.0,0.00031036,2]
[401342952,1768147856239,-250.0,0.00031036,2]
[401342953,1768147856249,-500.0,0.00031036,2]
[401342954,1768147856258,-151.0,0.00031036,2]
[401342955,1768147856268,-250.0,0.00031036,2]
[401342956,1768147856278,-250.0,0.00031036,2]
[401342957,1768147856287,-500.0,0.00031036,2]
[401342958,1768147856297,-151.0,0.00031036,2]
[401342959,1768147856307,-250.0,0.00031036,2]
[401342960,1768147856317,-250.0,0.00031036,2]
[401342961,1768147856327,-500.0,0.00031036,2]
[401342962,1768147856338,-151.0,0.00031036,2]
[401342963,1768147856348,-250.15738416,0.00031036,2]
[401342964,1768147856357,-250.0,0.00031036,2]
[401342965,1768147856367,-250.0,0.00031036,2]
[401342966,1768147856376,-500.0,0.00031036,2]
[401342967,1768147856386,-151.0,0.00031036,2]
[401342968,1768147856396,-250.0,0.00031036,2]
[401342969,1768147856406,-151.0,0.00031036,2]
[401342970,1768147856416,-250.0,0.00031036,2]
[401342971,1768147856498,-500.0,0.00031036,2]
[401342972,1768147856509,-151.0,0.00031036,2]
[401342973,1768147856519,-250.0,0.00031036,2]
[401342974,1768147856529,-151.0,0.00031036,2]
[401342975,1768147856539,-250.0,0.00031036,2]
[401342976,1768147856548,-500.0,0.00031036,2]
[401342977,1768147856558,-151.0,0.00031036,2]
[401342978,1768147856567,-445.202766,0.00031036,2]
[401342979,1768147856577,-201.61280064,0.00031036,2]
[401342980,1768147856587,-151.0,0.00031036,2]
[401342981,1768147856596,-500.0,0.00031036,2]
[401342982,1768147856606,-151.0,0.00031036,2]
[401342983,1768147856615,-151.0,0.00031036,2]
[401342984,1768147856624,-500.0,0.00031036,2]
[401342985,1768147856634,-151.0,0.00031036,2]
[401342986,1768147856644,-151.0,0.00031036,2]
[401342987,1768147856653,-500.0,0.00031036,2]
[401342988,1768147856663,-151.0,0.00031036,2]
[401342989,1768147856674,-151.0,0.00031036,2]
[401342990,1768147856684,-500.0,0.00031036,2]
[401342991,1768147856694,-151.0,0.00031036,2]
[401342992,1768147856703,-151.0,0.00031036,2]
[401342993,1768147856713,-500.0,0.00031036,2]
[401342994,1768147856722,-151.0,0.00031036,2]
[401342995,1768147856732,-151.0,0.00031036,2]
[401342996,1768147856741,-151.0,0.00031036,2]
[401342997,1768147856750,-500.0,0.00031036,2]
[401342998,1768147856759,-151.0,0.00031036,2]
[401342999,1768147856769,-151.0,0.00031036,2]
[401343000,1768147856778,-500.0,0.00031036,2]
[401343001,1768147856788,-151.0,0.00031036,2]
[401343002,1768147856801,-500.0,0.00031036,2]
[401343003,1768147856811,-151.0,0.00031036,2]
[401343004,1768147856821,-151.0,0.00031036,2]
[401343005,1768147856832,-500.0,0.00031036,2]
[401343006,1768147856842,-151.0,0.00031036,2]
[401343007,1768147856853,-151.0,0.00031036,2]
[401343008,1768147856862,-500.0,0.00031036,2]
[401343009,1768147856871,-151.0,0.00031036,2]
[401343010,1768147856879,-151.0,0.00031036,2]
[401343011,1768147856888,-500.0,0.00031036,2]
[401343012,1768147856897,-151.0,0.00031036,2]
[401343013,1768147856907,-151.0,0.00031036,2]
[401343014,1768147856915,-2105.41764886,0.00031091,2]
[401343015,1768147856924,-2183.31810187,0.00031146,2]
[401343016,1768147856933,-151.0,0.000312,10]
[401343017,1768147856945,-2264.10087164,0.00031201,2]
[401343018,1768147856955,-500.0,0.00031232,8]
[401343019,1768147856964,-151.0,0.00031232,31]
[401343020,1768147856975,-151.0,0.00031232,31]
[401343021,1768147856985,-151.0,0.00031232,31]
[401343022,1768147856995,-151.0,0.00031232,31]
[401343023,1768147857006,-755.83,0.00031232,8]
[401343024,1768147857015,-511.42,0.00031232,8]
[401343025,1768147857030,-500.0,0.00031232,2]
[401343026,1768147857040,-2769.41,0.00031232,3]
[401343027,1768147857051,-2486.72,0.00031232,8]
[401343028,1768147857060,-4899.58,0.00031232,8]
[401343029,1768147857070,-16913.26,0.00031232,8]
[401343030,1768147857080,-3222.62,0.00031232,8]
[401343031,1768147857090,-2226.28,0.00031232,8]
[401343032,1768147857101,-6797.13,0.00031232,8]
[401343033,1768147857110,-4204.37,0.00031232,8]
[401343034,1768147857119,-2536.91,0.00031232,8]
[401343035,1768147857129,-551.32,0.00031233,120]
[401343036,1768147857139,-2347.87260389,0.00031256,2]
[401343037,1768147857149,-2434.74389024,0.00031311,2]
[401343038,1768147857159,-2524.82941417,0.00031366,2]
[401343039,1768147857169,-151.0,0.000314,11]
[401343040,1768147857179,-2618.2481025,0.00031421,2]
[401343041,1768147857191,-2629.28958376,0.00031462,2]
[401343042,1768147857202,-2715.12328229,0.00031476,2]
[401343043,1768147857214,-500.0,0.00031506,8]
[401343044,1768147857225,-755.83,0.00031506,8]
[401343045,1768147857236,-511.42,0.00031506,8]
[401343046,1768147857247,-500.0,0.00031506,2]
[401343047,1768147857258,-2769.41,0.00031506,3]
[401343048,1768147857268,-2486.72,0.00031506,8]
[401343049,1768147857277,-4899.58,0.00031506,8]
[401343050,1768147857286,-16913.26,0.00031506,8]
[401343051,1768147857295,-3222.62,0.00031506,8]
[401343052,1768147857304,-2226.28,0.00031506,8]
[401343053,1768147857314,-6797.13,0.00031506,8]
[401343054,1768147857323,-4204.37,0.00031506,8]
[401343055,1768147857334,-2536.91,0.00031506,8]
[401343056,1768147857343,-2629.28958376,0.0003152,2]
[401343057,1768147857353,-155.57399191,0.00031525,10]
[401343058,1768147857363,-2815.58284374,0.00031531,2]
[401343059,1768147857373,-323.39571937,0.00031584,2]
[401343060,1768147857382,-2230.315306,0.00031584,2]
[401343061,1768147857392,-30307.20348016,0.00031584,2]
[401343062,1768147857402,-151.0,0.00031584,2]
[401343063,1768147857412,-461.67526834,0.00031584,2]
[401343064,1768147857423,-2919.75940895,0.00031586,2]
[401343065,1768147857433,-1112.0,0.00031599,2]
[401343066,1768147857443,-536.72987461,0.00031615,7]
[401343067,1768147857452,-193.4,0.00031629,30]
[401343068,1768147857462,-731.91871429,0.00031641,2]
[401343069,1768147857472,-500.0,0.0003167,120]
[401343070,1768147857482,-500.0,0.0003167,120]
[401343071,1768147857491,-500.0,0.0003167,120]
[401343072,1768147857501,-500.0,0.0003167,120]
[401343073,1768147857511,-500.0,0.0003167,120]
[401343074,1768147857523,-500.0,0.0003167,120]
[401343075,1768147857532,-500.0,0.0003167,120]
[401343076,1768147857542,-500.0,0.0003167,120]
[401343077,1768147857551,-500.0,0.0003167,120]
[401343078,1768147857561,-500.0,0.0003167,120]
[401343079,1768147857571,-500.0,0.0003167,120]
[401343080,1768147857581,-500.0,0.0003167,120]
[401343081,1768147857591,-500.0,0.0003167,120]
[401343082,1768147857600,-500.0,0.0003167,120]
[401343083,1768147857609,-500.0,0.0003167,120]
[401343084,1768147857619,-500.0,0.0003167,120]
[401343085,1768147857628,-500.0,0.0003167,120]
[401343086,1768147857638,-500.0,0.0003167,120]
[401343087,1768147857647,-500.0,0.0003167,120]
[401343088,1768147857657,-500.0,0.0003167,120]
[401343089,1768147857666,-500.0,0.0003167,120]
[401343090,1768147857675,-500.0,0.0003167,120]
[401343091,1768147857685,-500.0,0.0003167,120]
[401343092,1768147857695,-500.0,0.0003167,120]
[401343093,1768147857704,-500.0,0.0003167,120]
[401343094,1768147857714,-500.0,0.0003167,120]
[401343095,1768147857723,-500.0,0.0003167,120]
[401343096,1768147857733,-500.0,0.0003167,120]
[401343097,1768147857742,-500.0,0.0003167,120]
[401343098,1768147857751,-500.0,0.0003167,120]
[401343099,1768147857760,-500.0,0.0003167,120]
[401343100,1768147857770,-500.0,0.0003167,120]
[401343101,1768147857779,-500.0,0.0003167,120]
[401343102,1768147857788,-500.0,0.0003167,120]
[401343103,1768147857797,-500.0,0.0003167,120]
[401343104,1768147857807,-500.0,0.0003167,120]
[401343105,1768147857816,-500.0,0.0003167,120]
[401343106,1768147857825,-500.0,0.0003167,120]
[401343107,1768147857835,-500.0,0.0003167,120]
[401343108,1768147857845,-500.0,0.0003167,120]
[401343109,1768147857854,-500.0,0.0003167,120]
[401343110,1768147857864,-500.0,0.0003167,120]
[401343111,1768147857873,-500.0,0.0003167,120]
[401343112,1768147857883,-639.14,0.0003167,120]
[401343113,1768147857893,-1591.45377303,0.0003169,2]
[401343114,1768147857903,-151.0,0.000317,17]
[401343115,1768147857913,-500.0,0.0003178,8]
[401343116,1768147857923,-755.83,0.0003178,8]
[401343117,1768147857933,-511.42,0.0003178,8]
[401343118,1768147857942,-500.0,0.0003178,2]
[401343119,1768147857952,-2769.41,0.0003178,3]
[401343120,1768147857961,-2486.72,0.0003178,8]
[401343121,1768147858040,-4899.58,0.0003178,8]
[401343122,1768147858051,-16913.26,0.0003178,8]
[401343123,1768147858060,-3222.62,0.0003178,8]
[401343124,1768147858070,-2226.28,0.0003178,8]
[401343125,1768147858080,-6797.13,0.0003178,8]
[401343126,1768147858090,-4204.37,0.0003178,8]
[401343127,1768147858101,-2536.91,0.0003178,8]
[401343128,1768147858111,-151.0,0.00031825,14]
[401343129,1768147858120,-601.4752142,0.0003189,30]
[401343130,1768147858129,-155.796993,0.0003189,30]
[401343131,1768147858138,-601.4752142,0.0003189,30]
[401343132,1768147858147,-601.4752142,0.0003189,30]
[401343133,1768147858157,-601.4752142,0.0003189,30]
[401343134,1768147858166,-601.4752142,0.0003189,30]
[401343135,1768147858175,-1200.5488488,0.0003189,30]
[401343136,1768147858184,-151.0,0.000319,15]
[401343137,1768147858194,-2629.28958376,0.00032011,2]
[401343138,1768147858204,-377.0831682,0.00032027,30]
[401343139,1768147858217,-500.0,0.00032054,8]
[401343140,1768147858226,-755.83,0.00032054,8]